fUST/lending_fUST_20250630
["ID","MTS","AMOUNT","RATE_DAILY","PERIOD"]
[368636745,1751256647001,-460.0,0.00020973,2]
[368636746,1751256647012,-996.8,0.00020973,2]
[368636747,1751256647021,-1026.17,0.00020973,2]
[368636748,1751256647031,-460.0,0.00020973,2]
[368636749,1751256647040,-1226.43,0.00020973,2]
[368636750,1751256647049,-460.0,0.00020973,2]
[368636751,1751256647059,-1807.28,0.00020973,2]
[368636752,1751256647069,-548.33,0.00020973,2]
[368636753,1751256647080,-1585.86,0.00020973,2]
[368636754,1751256647090,-17210.01,0.00020973,2]
[368636755,1751256647100,-460.0,0.00020973,2]
[368636756,1751256647110,-460.0,0.00020973,2]
[368636757,1751256647120,-1055.05,0.00020973,2]
[368636758,1751256647131,-153.106952,0.00020973,2]
[368636759,1751256647140,-460.0,0.00020973,2]
[368636760,1751256647149,-460.0,0.00020973,2]
[368636761,1751256647159,-770.74,0.00020973,2]
[368636762,1751256647168,-468.32,0.00020973,2]
[368636763,1751256647178,-1066.11,0.00020973,2]
[368636764,1751256647188,-460.0,0.00020973,2]
[368636765,1751256647198,-460.0,0.00020974,2]
[368636766,1751256647208,-721.17,0.00020974,2]
[368636767,1751256647218,-978.43,0.00020974,2]
[368636768,1751256647228,-534.26,0.00020974,2]
[368636769,1751256647238,-460.0,0.00020974,2]
[368636770,1751256647247,-460.0,0.00020974,2]
[368636771,1751256647257,-460.0,0.00020974,2]
[368636772,1751256647266,-678.08,0.00020974,2]
[368636773,1751256647276,-1418.0,0.00020974,2]
[368636774,1751256647285,-460.0,0.00020974,2]
[368636775,1751256647294,-460.0,0.00020974,2]
[368636776,1751256647304,-832.05,0.00020974,2]
[368636777,1751256647313,-3065.61,0.00020974,2]
[368636778,1751256647322,-1187.81,0.00020974,2]
[368636779,1751256647332,-915.3,0.00020974,2]
[368636780,1751256647341,-2530.53,0.00020975,2]
[368636781,1751256647351,-571.54,0.00020975,2]
[368636782,1751256647360,-151.0,0.00020975,2]
[368636783,1751256647370,-154.553503,0.00020975,2]
[368636784,1751256647379,-151.0,0.00020975,2]
[368636785,1751256647389,-151.0,0.00020975,2]
[368636786,1751256647398,-460.0,0.00020976,2]
[368636787,1751256647408,-561615.85498931,0.00020999,2]
[368636788,1751256647590,-495.25300418,0.0001823,2]
[368636789,1751256647602,-3506.37177748,0.0001823,2]
[368636790,1751256647612,-4001.62478166,0.0001823,2]
[368636791,1751256647621,-4001.62478166,0.0001823,2]
[368636792,1751256647631,-460.0,0.00018231,2]
[368636793,1751256647641,-460.0,0.00018233,2]
[368636794,1751256647650,-460.0,0.00018505,2]
[368636795,1751256647659,-460.0,0.00018779,2]
[368636796,1751256647669,-460.0,0.00019053,2]
[368636797,1751256647678,-460.0,0.00019327,2]
[368636798,1751256647687,-460.0,0.00019601,2]
[368636799,1751256647696,-85041.05308137,0.00020999,2]
[368636800,1751256647707,-208274.08065311,0.00020999,2]
[368636801,1751256648032,-258.0030354,0.00018231,2]
[368636802,1751256693593,24900.0,0.00017416,2]
[368636803,1751256702514,-176.00966665,0.0001813,2]
[368636804,1751256915345,195.66481742,0.00017932,2]
[368636805,1751256917693,-180.09692065,0.0001808,2]
[368636806,1751256917714,-36.11338735,0.0001813,2]
[368636807,1751256920168,-300.0,0.0001813,2]
[368636808,1751256925187,-290.92937056,0.0001813,2]
[368636809,1751256926904,-117.70039218,0.0001813,2]
[368636810,1751256947521,-151.58572632,0.00018128,2]
[368636811,1751256953271,-24.42394033,0.00018128,2]
[368636812,1751257102092,10000.0,0.00018013,2]
[368636813,1751257111249,10000.0,0.00018013,2]
[368636814,1751257122032,10000.0,0.00018013,2]
[368636815,1751257168197,-163.0,0.00018217,3]
[368636816,1751257255745,-203.86917127,0.00018126,2]
[368636817,1751257255767,-71.40709219,0.00018135,2]
[368636818,1751257257034,-324.6703462,0.00018135,2]
[368636819,1751257260424,-160.0,0.00018135,2]
[368636820,1751257262610,-91.68825732,0.00018135,2]
[368636821,1751257322799,-160.61179929,0.00018125,2]
[368636822,1751257327291,-9.61973503,0.00018125,2]
[368636823,1751257519610,-173.12570085,0.00018123,2]
[368636826,1751257536261,194.767845,0.00013699,2]
[368636827,1751257597799,-365.77342343,0.00018125,2]
[368636828,1751257599724,-265.60674513,0.00018125,2]
[368636829,1751257606033,-250.72127297,0.00018125,2]
[368636830,1751257609066,-300.0,0.00018125,2]
[368636831,1751257612825,-380.41199733,0.00018125,2]
[368636832,1751257615023,-166.18256801,0.00018125,2]
[368636833,1751257616697,-226.16443708,0.00018125,2]
[368636834,1751257620137,-204.91819473,0.00018125,2]
[368636835,1751257623173,-250.85252126,0.00018125,2]
[368636836,1751257626786,-69.42960506,0.00018125,2]
[368636838,1751257714698,-151.48498827,0.00018122,2]
[368636840,1751257744009,24900.0,0.00017223,2]
[368636902,1751257832412,-300.0,0.00018212,2]
[368636904,1751257832424,-900.0,0.00018212,2]
[368636906,1751257832433,-1200.0,0.00018213,2]
[368636908,1751257832443,-300.0,0.00018213,2]
[368636910,1751257832453,-300.0,0.00018213,2]
[368636911,1751257832463,-300.0,0.00018213,2]
[368636912,1751257832471,-300.0,0.00018213,2]
[368636913,1751257832481,-1181.1,0.00018214,3]
[368636914,1751257832490,-590.55,0.00018214,3]
[368636915,1751257832499,-196.85,0.00018214,3]
[368636916,1751257832508,-590.56,0.00018214,3]
[368636917,1751257832517,-198.65822138,0.00018221,2]
[368636936,1751257832719,-49801.34177862,0.00018221,2]
[368636937,1751257832729,-172.24025925,0.00018221,2]
[368636938,1751257832738,-500.0,0.00018221,2]
[368636939,1751257832747,-500.0,0.00018221,2]
[368636940,1751257832757,-500.0,0.00018221,2]
[368636941,1751257832767,-500.0,0.00018221,2]
[368636942,1751257832776,-500.0,0.00018221,2]
[368636943,1751257832785,-617.5647519,0.00018221,2]
[368636944,1751257832795,-328.67617163,0.00018221,2]
[368636945,1751257832804,-2112.17650262,0.00018221,2]
[368636946,1751257832813,-2112.17650262,0.00018221,2]
[368636947,1751257832823,-2112.17650262,0.00018221,2]
[368636948,1751257832832,-2112.17650262,0.00018221,2]
[368636949,1751257832841,-2112.17650262,0.00018221,2]
[368636950,1751257832850,-2112.17650262,0.00018221,2]
[368636951,1751257832860,-2112.17650262,0.00018221,2]
[368636952,1751257832869,-2112.17650262,0.00018221,2]
[368636953,1751257832879,-2112.17650262,0.00018221,2]
[368636954,1751257832888,-2112.17650262,0.00018221,2]
[368636955,1751257832898,-2112.17650262,0.00018221,2]
[368636956,1751257832907,-2112.17650262,0.00018221,2]
[368636957,1751257832916,-2112.17650262,0.00018221,2]
[368636958,1751257832926,-2112.17650262,0.00018221,2]
[368636959,1751257832935,-2112.17650262,0.00018221,2]
[368636960,1751257832944,-2112.17650262,0.00018221,2]
[368636961,1751257832953,-2112.17650262,0.00018221,2]
[368636962,1751257832963,-2112.17650262,0.00018221,2]
[368636963,1751257832972,-2112.17650262,0.00018221,2]
[368636964,1751257832981,-2112.17650262,0.00018221,2]
[368636965,1751257832990,-2112.17650262,0.00018221,2]
[368636966,1751257832999,-2112.17650262,0.00018221,2]
[368636967,1751257833009,-2112.17650262,0.00018221,2]
[368636968,1751257833019,-2112.17650262,0.00018221,2]
[368636969,1751257833028,-2112.17650262,0.00018221,2]
[368636970,1751257833037,-2112.17650262,0.00018221,2]
[368636971,1751257833047,-2112.17650262,0.00018221,2]
[368636972,1751257833057,-2112.17650262,0.00018221,2]
[368636973,1751257833066,-2112.17650262,0.00018221,2]
[368636974,1751257833076,-2112.17650262,0.00018221,2]
[368636975,1751257833085,-2112.17650262,0.00018221,2]
[368636976,1751257833095,-2112.17650262,0.00018221,2]
[368636977,1751257833104,-2112.17650262,0.00018221,2]
[368636978,1751257833113,-2112.17650262,0.00018221,2]
[368636979,1751257833124,-2112.17650262,0.00018221,2]
[368636980,1751257833133,-2112.17650262,0.00018221,2]
[368636981,1751257833143,-2112.17650262,0.00018221,2]
[368636982,1751257833154,-2112.17650262,0.00018221,2]
[368636983,1751257833163,-2112.17650262,0.00018221,2]
[368636984,1751257833173,-2112.17650262,0.00018221,2]
[368636985,1751257833182,-2112.17650262,0.00018221,2]
[368636986,1751257833192,-2112.17650262,0.00018221,2]
[368636987,1751257833201,-2112.17650262,0.00018221,2]
[368636988,1751257833211,-2112.17650262,0.00018221,2]
[368636989,1751257833220,-2112.17650262,0.00018221,2]
[368636990,1751257833230,-2112.17650262,0.00018221,2]
[368636991,1751257833240,-2112.17650262,0.00018221,2]
[368636992,1751257833250,-2112.17650262,0.00018221,2]
[368636993,1751257833259,-2112.17650262,0.00018221,2]
[368636994,1751257833268,-2112.17650262,0.00018221,2]
[368636995,1751257833277,-2112.17650262,0.00018221,2]
[368636996,1751257833287,-2112.17650262,0.00018221,2]
[368636997,1751257833296,-2112.17650262,0.00018221,2]
[368636998,1751257833306,-2112.17650262,0.00018221,2]
[368636999,1751257833316,-2112.17650262,0.00018221,2]
[368637000,1751257833325,-2112.17650262,0.00018221,2]
[368637001,1751257833334,-2112.17650262,0.00018221,2]
[368637002,1751257833344,-2112.17650262,0.00018221,2]
[368637003,1751257833354,-2112.17650262,0.00018221,2]
[368637004,1751257833363,-2112.17650262,0.00018221,2]
[368637005,1751257833372,-2104.6330151,0.00018221,2]
[368637006,1751257833382,-2104.6330151,0.00018221,2]
[368637007,1751257833391,-2104.6330151,0.00018221,2]
[368637008,1751257833400,-2104.6330151,0.00018221,2]
[368637009,1751257833409,-2104.6330151,0.00018221,2]
[368637010,1751257833418,-2104.6330151,0.00018221,2]
[368637011,1751257833427,-2104.6330151,0.00018221,2]
[368637012,1751257833436,-2104.6330151,0.00018221,2]
[368637013,1751257833446,-2104.6330151,0.00018221,2]
[368637014,1751257833455,-2104.6330151,0.00018221,2]
[368637015,1751257833465,-2104.6330151,0.00018221,2]
[368637016,1751257833475,-2104.6330151,0.00018221,2]
[368637017,1751257833484,-2104.6330151,0.00018221,2]
[368637018,1751257833494,-2104.6330151,0.00018221,2]
[368637019,1751257833503,-2104.6330151,0.00018221,2]
[368637020,1751257833513,-2104.6330151,0.00018221,2]
[368637021,1751257833523,-2104.6330151,0.00018221,2]
[368637022,1751257833532,-2104.6330151,0.00018221,2]
[368637023,1751257833542,-2104.6330151,0.00018221,2]
[368637024,1751257833551,-2104.6330151,0.00018221,2]
[368637025,1751257833561,-2104.6330151,0.00018221,2]
[368637026,1751257833570,-2104.6330151,0.00018221,2]
[368637027,1751257833579,-2104.6330151,0.00018221,2]
[368637028,1751257833588,-2104.6330151,0.00018221,2]
[368637029,1751257833598,-2104.6330151,0.00018221,2]
[368637030,1751257833608,-2104.6330151,0.00018221,2]
[368637031,1751257833621,-2104.6330151,0.00018221,2]
[368637032,1751257833630,-2104.6330151,0.00018221,2]
[368637033,1751257833639,-255.96220861,0.00018221,2]
[368637034,1751257833648,-460.0,0.00018221,2]
[368637035,1751257833659,-460.0,0.00018221,2]
[368637036,1751257833668,-501.29120945,0.00018221,2]
[368637037,1751257833678,-460.0,0.00018221,2]
[368637038,1751257833688,-466.22641417,0.00018222,2]
[368637039,1751257833698,-470.51550633,0.00018222,2]
[368637040,1751257833708,-465.29447915,0.00018222,2]
[368637041,1751257833718,-466.32814593,0.00018222,2]
[368637042,1751257833728,-192.72918145,0.00018222,2]
[368637043,1751257833738,-460.0,0.00018222,2]
[368637044,1751257833747,-460.0,0.00018222,2]
[368637045,1751257833756,-460.0,0.00018222,2]
[368637046,1751257833765,-460.0,0.00018222,2]
[368637047,1751257833775,-460.0,0.00018222,2]
[368637048,1751257833784,-1703.57,0.00018222,2]
[368637049,1751257833794,-460.0,0.00018223,2]
[368637050,1751257833803,-460.0,0.00018223,2]
[368637051,1751257833812,-460.0,0.00018223,2]
[368637052,1751257833821,-460.0,0.00018223,2]
[368637053,1751257833831,-460.0,0.00018223,2]
[368637054,1751257833840,-460.0,0.00018223,2]
[368637055,1751257833849,-411.44467223,0.00018223,2]
[368637056,1751257833859,-460.0,0.00018223,2]
[368637057,1751257833867,-460.0,0.00018223,2]
[368637058,1751257833876,-460.67260598,0.00018223,2]
[368637059,1751257833886,-460.0,0.00018223,2]
[368637060,1751257833896,-503.34201911,0.00018223,2]
[368637061,1751257833905,-460.0,0.00018223,2]
[368637062,1751257833914,-462.97946631,0.00018223,2]
[368637063,1751257833923,-460.0,0.00018223,2]
[368637064,1751257833933,-460.0,0.00018223,2]
[368637065,1751257833942,-495.361687,0.00018223,2]
[368637066,1751257833951,-461.30063046,0.00018223,2]
[368637067,1751257833960,-460.0,0.00018223,2]
[368637068,1751257833969,-461.61791814,0.00018223,2]
[368637069,1751257833979,-1306.2,0.00018223,2]
[368637070,1751257833988,-462.58528724,0.00018223,2]
[368637071,1751257833997,-460.0,0.00018223,2]
[368637072,1751257834007,-2602.4,0.00018223,2]
[368637073,1751257834016,-462.12415252,0.00018223,2]
[368637074,1751257834025,-2749.34,0.00018223,2]
[368637075,1751257834035,-460.0,0.00018223,2]
[368637076,1751257834044,-475.12,0.00018223,2]
[368637077,1751257834053,-460.0,0.00018223,2]
[368637078,1751257834063,-460.0,0.00018223,2]
[368637079,1751257834072,-460.0,0.00018223,2]
[368637080,1751257834081,-460.0,0.00018223,2]
[368637081,1751257834090,-460.0,0.00018223,2]
[368637082,1751257834100,-460.0,0.00018223,2]
[368637083,1751257834110,-2638.81,0.00018223,2]
[368637084,1751257834119,-2329.11,0.00018223,2]
[368637085,1751257834128,-3030.06,0.00018223,2]
[368637086,1751257834138,-460.0,0.00018223,2]
[368637087,1751257834148,-460.0,0.00018223,2]
[368637088,1751257834159,-460.0,0.00018223,2]
[368637089,1751257834168,-460.0,0.00018223,2]
[368637090,1751257834178,-1427.46,0.00018223,2]
[368637091,1751257834188,-460.0,0.00018223,2]
[368637092,1751257834197,-479.18,0.00018223,2]
[368637093,1751257834207,-460.0,0.00018223,2]
[368637094,1751257834216,-460.0,0.00018225,2]
[368637095,1751257834226,-460.0,0.00018225,2]
[368637096,1751257834235,-460.0,0.00018225,2]
[368637097,1751257834244,-460.0,0.00018225,2]
[368637098,1751257834253,-460.0,0.00018225,2]
[368637099,1751257834263,-460.0,0.00018225,2]
[368637100,1751257834280,-460.0,0.00018225,2]
[368637101,1751257834293,-460.0,0.00018225,2]
[368637102,1751257834303,-380.88661246,0.00018225,2]
[368637103,1751257834312,-460.0,0.00018225,2]
[368637104,1751257834322,-460.0,0.00018225,2]
[368637105,1751257834332,-500.0,0.00018225,2]
[368637106,1751257834342,-500.0,0.00018225,2]
[368637107,1751257834352,-516.9775803,0.00018225,2]
[368637108,1751257834361,-460.0,0.00018225,2]
[368637109,1751257834371,-460.0,0.00018225,2]
[368637110,1751257834381,-516.73,0.00018225,2]
[368637111,1751257834391,-255.74,0.00018225,2]
[368637112,1751257834401,-460.0,0.00018225,2]
[368637113,1751257834410,-464.12544799,0.00018225,2]
[368637114,1751257834420,-460.0,0.00018225,2]
[368637115,1751257834429,-460.0,0.00018225,2]
[368637116,1751257834439,-463.11208431,0.00018225,2]
[368637117,1751257834450,-288.07129699,0.00018225,2]
[368637118,1751257834459,-460.0,0.00018225,2]
[368637119,1751257834470,-462.81851876,0.00018225,2]
[368637120,1751257834479,-152.89648035,0.00018225,2]
[368637121,1751257834489,-500.0,0.00018225,2]
[368637122,1751257834499,-549.46291906,0.00018225,2]
[368637123,1751257834508,-460.0,0.00018225,2]
[368637124,1751257834518,-500.0,0.00018225,2]
[368637125,1751257834528,-459.31758978,0.00018225,2]
[368637126,1751257834538,-460.0,0.00018225,2]
[368637127,1751257834548,-500.0,0.00018225,2]
[368637128,1751257834557,-500.0,0.00018225,2]
[368637129,1751257834567,-500.0,0.00018225,2]
[368637130,1751257834576,-500.0,0.00018225,2]
[368637131,1751257834586,-500.0,0.00018225,2]
[368637132,1751257834595,-500.0,0.00018225,2]
[368637133,1751257834606,-500.0,0.00018225,2]
[368637134,1751257834619,-500.0,0.00018225,2]
[368637135,1751257834628,-500.0,0.00018225,2]
[368637136,1751257834639,-464.16797438,0.00018225,2]
[368637137,1751257834648,-460.0,0.00018225,2]
[368637138,1751257834660,-460.0,0.00018225,2]
[368637139,1751257834669,-460.0,0.00018225,2]
[368637140,1751257834679,-460.0,0.00018225,2]
[368637141,1751257834690,-460.0,0.00018225,2]
[368637142,1751257834700,-460.0,0.00018225,2]
[368637143,1751257834710,-151.0,0.00018225,2]
[368637144,1751257834721,-151.0,0.00018225,2]
[368637145,1751257834730,-500.0,0.00018225,2]
[368637146,1751257834919,-151.0,0.00018225,2]
[368637147,1751257834929,-500.0,0.00018225,2]
[368637148,1751257834939,-198.0,0.00018225,2]
[368637149,1751257834948,-460.0,0.00018225,2]
[368637150,1751257834957,-500.0,0.00018225,2]
[368637151,1751257834967,-160.0,0.00018226,2]
[368637152,1751257834976,-460.0,0.00018226,2]
[368637153,1751257834986,-460.0,0.00018226,2]
[368637154,1751257834996,-461.26840416,0.00018226,2]
[368637155,1751257835005,-481.06531681,0.00018226,2]
[368637156,1751257835014,-460.0,0.00018226,2]
[368637157,1751257835024,-468.50297407,0.00018226,2]
[368637158,1751257835033,-460.0,0.00018226,2]
[368637159,1751257835042,-460.0,0.00018226,2]
[368637160,1751257835052,-467.11841176,0.00018226,2]
[368637161,1751257835061,-460.0,0.00018226,2]
[368637162,1751257835071,-506.85359698,0.00018226,2]
[368637163,1751257835080,-460.0,0.00018226,2]
[368637164,1751257835090,-470.0204448,0.00018226,2]
[368637165,1751257835099,-461.37471387,0.00018226,2]
[368637166,1751257835108,-483.22,0.00018226,2]
[368637167,1751257835118,-460.0,0.00018226,2]
[368637168,1751257835127,-460.0,0.00018226,2]
[368637169,1751257835137,-460.0,0.00018226,2]
[368637170,1751257835147,-460.0,0.00018226,2]
[368637171,1751257835157,-581.44,0.00018226,2]
[368637172,1751257835166,-465.36885311,0.00018226,2]
[368637173,1751257835176,-460.0,0.00018226,2]
[368637174,1751257835185,-460.0,0.00018226,2]
[368637175,1751257835195,-466.05327461,0.00018226,2]
[368637176,1751257835204,-464.14962947,0.00018226,2]
[368637177,1751257835214,-460.0,0.00018226,2]
[368637178,1751257835223,-573.66,0.00018226,2]
[368637179,1751257835233,-460.0,0.00018226,2]
[368637180,1751257835243,-889.3,0.00018226,2]
[368637181,1751257835253,-460.0,0.00018226,2]
[368637182,1751257835262,-460.0,0.00018226,2]
[368637183,1751257835272,-482.41798699,0.00018226,2]
[368637184,1751257835281,-17303.36,0.00018226,2]
[368637185,1751257835295,-500.0,0.00018226,2]
[368637186,1751257835304,-500.0,0.00018226,2]
[368637187,1751257835314,-403.52165141,0.00018226,2]
[368637188,1751257835324,-461.34845891,0.00018226,2]
[368637189,1751257835333,-460.0,0.00018226,2]
[368637190,1751257835344,-460.0,0.00018226,2]
[368637191,1751257835353,-460.0,0.00018226,2]
[368637192,1751257835363,-460.0,0.00018226,2]
[368637193,1751257835372,-460.0,0.00018226,2]
[368637194,1751257835382,-460.0,0.00018227,2]
[368637195,1751257835392,-460.0,0.00018227,2]
[368637196,1751257835401,-469.46067986,0.00018227,2]
[368637197,1751257835411,-460.0,0.00018227,2]
[368637198,1751257835420,-468.23781759,0.00018227,2]
[368637199,1751257835430,-465.30462242,0.00018227,2]
[368637200,1751257835439,-464.25609021,0.00018227,2]
[368637201,1751257835449,-520.07741598,0.00018227,2]
[368637202,1751257835458,-460.0,0.00018227,2]
[368637203,1751257835468,-460.0,0.00018227,2]
[368637204,1751257835478,-1049.57,0.00018227,2]
[368637205,1751257835487,-460.0,0.00018227,2]
[368637206,1751257835497,-460.0,0.00018227,2]
[368637207,1751257835506,-460.0,0.00018227,2]
[368637208,1751257835516,-461.72162445,0.00018227,2]
[368637209,1751257835526,-422.13481113,0.00018227,2]
[368637210,1751257835536,-488.34,0.00018227,2]
[368637211,1751257835546,-460.0,0.00018227,2]
[368637212,1751257835555,-460.0,0.00018227,2]
[368637213,1751257835566,-577.66,0.00018227,2]
[368637214,1751257835576,-460.0,0.00018227,2]
[368637215,1751257835586,-651.29,0.00018227,2]
[368637216,1751257835595,-168.34245234,0.00018227,2]
[368637217,1751257835615,-720.99754766,0.00018227,2]
[368637218,1751257835625,-461.94194424,0.00018228,2]
[368637219,1751257835634,-214.69475561,0.00018228,2]
[368637233,1751257838365,-409.36086168,0.00018226,2]
[368637234,1751257838422,-463.09,0.00018223,2]
[368637235,1751257838432,-50.63913832,0.00018226,2]
[368637236,1751257838443,-245.30524439,0.00018228,2]
[368637237,1751257838452,-460.0,0.00018228,2]
[368637238,1751257838462,-130.9656173,0.00018228,2]
[368637239,1751257838474,-329.0343827,0.00018228,2]
[368637240,1751257838483,-464.32261964,0.00018228,2]
[368637241,1751257838494,-258.36080698,0.00018228,2]
[368637242,1751257838503,-460.0,0.00018228,2]
[368637243,1751257838513,-460.0,0.00018228,2]
[368637244,1751257838522,-461.94303739,0.00018228,2]
[368637245,1751257838531,-460.0,0.00018228,2]
[368637247,1751257838541,-460.0,0.00018228,2]
[368637248,1751257838550,-471.12990951,0.00018228,2]
[368637249,1751257838560,-460.0,0.00018228,2]
[368637250,1751257838569,-460.0,0.00018228,2]
[368637251,1751257838579,-471.3460106,0.00018228,2]
[368637252,1751257838588,-460.0,0.00018228,2]
[368637253,1751257838598,-460.0,0.00018228,2]
[368637254,1751257838609,-460.0,0.00018228,2]
[368637256,1751257838621,-460.0,0.00018228,2]
[368637257,1751257838630,-462.22701037,0.00018228,2]
[368637258,1751257838638,-461.72576968,0.00018228,2]
[368637259,1751257838648,-297.42162406,0.00018228,2]
[368637260,1751257838659,-465.60409865,0.00018228,2]
[368637261,1751257838669,-460.0,0.00018228,2]
[368637262,1751257838679,-460.0,0.00018228,2]
[368637263,1751257838689,-466.90154414,0.00018228,2]
[368637264,1751257838699,-460.0,0.00018228,2]
[368637265,1751257838708,-460.0,0.00018228,2]
[368637266,1751257838718,-463.42715914,0.00018228,2]
[368637267,1751257838727,-460.0,0.00018228,2]
[368637268,1751257838737,-460.0,0.00018228,2]
[368637269,1751257838746,-460.0,0.00018228,2]
[368637270,1751257838756,-397.46532108,0.00018228,2]
[368637271,1751257838765,-464.61735849,0.00018228,2]
[368637272,1751257838775,-460.0,0.00018228,2]
[368637273,1751257838784,-460.0,0.00018228,2]
[368637274,1751257838794,-518.62425995,0.00018228,2]
[368637275,1751257838804,-460.58626071,0.00018228,2]
[368637276,1751257838814,-463.00981295,0.00018228,2]
[368637277,1751257838823,-458.81514853,0.00018228,2]
[368637278,1751257838832,-463.4324799,0.00018228,2]
[368637279,1751257838841,-502.85678311,0.00018228,2]
[368637280,1751257838850,-463.64326109,0.00018228,2]
[368637281,1751257838859,-461.61880357,0.00018228,2]
[368637282,1751257838869,-461.9571113,0.00018228,2]
[368637283,1751257838878,-462.15266584,0.00018228,2]
[368637284,1751257838887,-460.0,0.00018228,2]
[368637285,1751257838896,-460.0,0.00018228,2]
[368637286,1751257838906,-460.0,0.00018228,2]
[368637287,1751257838916,-462.59009271,0.00018228,2]
[368637288,1751257838925,-460.0,0.00018228,2]
[368637289,1751257838934,-460.0,0.00018228,2]
[368637290,1751257838945,-151.0,0.00018228,2]
[368637291,1751257838954,-151.71752132,0.00018228,2]
[368637292,1751257838964,-500.0,0.00018228,2]
[368637293,1751257838974,-468.66849883,0.00018228,2]
[368637294,1751257838983,-151.0,0.00018228,2]
[368637295,1751257838992,-460.0,0.00018228,2]
[368637296,1751257839002,-500.0,0.00018228,2]
[368637297,1751257839011,-500.0,0.00018228,2]
[368637298,1751257839020,-500.0,0.00018228,2]
[368637299,1751257839029,-500.0,0.00018228,2]
[368637300,1751257839038,-151.0,0.00018228,2]
[368637301,1751257839047,-151.0,0.00018228,2]
[368637303,1751257839057,-500.0,0.00018228,2]
[368637305,1751257839066,-289.73538419,0.00018228,2]
[368637307,1751257839076,-460.0,0.00018228,2]
[368637309,1751257839086,-1000.0,0.00018228,2]
[368637311,1751257839095,-1000.0,0.00018228,2]
[368637312,1751257839104,-1000.0,0.00018228,2]
[368637313,1751257839114,-1000.0,0.00018228,2]
[368637314,1751257839123,-916.6283957,0.00018228,2]
[368637315,1751257839132,-460.0,0.00018228,2]
[368637316,1751257839142,-371.28670444,0.00018228,2]
[368637317,1751257839151,-276.7290159,0.00018228,2]
[368637318,1751257839160,-460.0,0.00018228,2]
[368637319,1751257839170,-463.36199677,0.00018228,2]
[368637320,1751257839179,-460.0,0.00018228,2]
[368637321,1751257839189,-462.87908725,0.00018228,2]
[368637322,1751257839198,-461.47957654,0.00018228,2]
[368637323,1751257839208,-460.0,0.00018228,2]
[368637324,1751257839218,-464.12742218,0.00018228,2]
[368637325,1751257839227,-460.0,0.00018228,2]
[368637326,1751257839236,-463.48472772,0.00018228,2]
[368637327,1751257839245,-390.71298437,0.00018228,2]
[368637328,1751257839255,-460.0,0.00018228,2]
[368637329,1751257839264,-460.0,0.00018228,2]
[368637330,1751257839274,-460.0,0.00018228,2]
[368637331,1751257839283,-460.0,0.00018229,2]
[368637332,1751257839293,-309.88851725,0.00018229,2]
[368637333,1751257839302,-464.90875708,0.00018229,2]
[368637334,1751257839311,-460.0,0.00018229,2]
[368637335,1751257839321,-1000.0,0.00018229,2]
[368637336,1751257839330,-460.0,0.00018229,2]
[368637337,1751257839340,-500.0,0.0001823,2]
[368637338,1751257839349,-460.63025022,0.00018231,2]
[368637339,1751257839359,-460.0,0.00018231,2]
[368637340,1751257839368,-460.0,0.00018231,2]
[368637341,1751257839377,-460.0,0.00018231,2]
[368637342,1751257839386,-460.0,0.00018231,2]
[368637343,1751257839396,-460.0,0.00018231,2]
[368637344,1751257839405,-460.0,0.00018231,2]
[368637345,1751257839414,-460.0,0.00018231,2]
[368637346,1751257839424,-460.0,0.00018231,2]
[368637347,1751257839433,-463.63530792,0.00018231,2]
[368637348,1751257839442,-460.0,0.00018231,2]
[368637349,1751257839451,-460.0,0.00018231,2]
[368637350,1751257839461,-344.98897562,0.00018231,2]
[368637351,1751257839471,-460.0,0.00018231,2]